bitfinex-derivatives/quotes_ETHF0:USTF0_20260115
["timestamp","ask_amount","ask_price","bid_price","bid_amount"]
[1768439285182,40.94972,3339.9,3338.4,2.1747108]
[1768439285384,3.12634867,3339.8,3338.0,1.161]
[1768439285693,3.12634867,3339.7,3338.0,1.161]
[1768439285988,43.92872,3339.9,3338.1,2.1747108]
[1768439286189,0.89883522,3339.8,3338.1,2.1747108]
[1768439286381,0.89883522,3339.7,3338.1,2.1747108]
[1768439286575,43.92872,3339.9,3338.1,2.1747108]
[1768439286878,3.87946815,3339.8,3338.2,2.1747108]
[1768439287079,0.89846815,3339.7,3338.2,2.1747108]
[1768439287388,2.981,3339.8,3338.2,2.1747108]
[1768439287583,2.37727878,3339.7,3338.0,1.16404074]
[1768439287991,0.90460142,3339.6,3338.0,1.16404074]
[1768439288179,2.37727878,3339.7,3338.0,1.16404074]
[1768439288376,2.22754878,3339.5,3338.0,0.00304074]
[1768439292193,0.14973,3339.6,3338.0,2.17775154]
[1768439292488,2.989,3339.5,3338.0,2.17775154]
[1768439292691,2.989,3339.4,3338.0,2.17775154]
[1768439292881,2.99263978,3339.4,3338.0,2.17775154]
[1768439294997,0.00363978,3339.4,3338.0,2.17775154]
[1768439304201,0.90602375,3339.3,3338.0,2.17775154]
[1768439304501,0.90607056,3339.2,3338.0,2.17775154]
[1768439304691,0.00363978,3339.4,3338.0,2.17775154]
[1768439304893,0.90607177,3339.3,3338.0,2.17775154]
[1768439305092,0.90607177,3339.2,3338.0,2.17775154]
[1768439305298,0.90607177,3339.1,3338.0,2.17775154]
[1768439305507,0.00363978,3339.4,3338.0,2.17775154]
[1768439305692,0.90682464,3339.3,3338.0,2.17775154]
[1768439305888,0.00363978,3339.4,3338.0,2.17775154]
[1768439305889,0.90682464,3339.2,3338.0,2.17775154]
[1768439306093,0.90682464,3339.1,3338.0,2.17775154]
[1768439306303,0.00363978,3339.4,3338.0,2.17775154]
[1768439306604,0.90751741,3339.3,3338.0,2.17775154]
[1768439306804,0.90751741,3339.2,3338.0,2.17775154]
[1768439307000,0.90751741,3339.1,3338.0,2.17775154]
[1768439307200,0.90824754,3339.0,3338.0,2.17775154]
[1768439307407,0.00363978,3339.4,3338.0,2.17775154]
[1768439307603,0.90827517,3339.3,3338.0,2.17775154]
[1768439307798,0.90827517,3339.2,3338.0,2.17775154]
[1768439308098,0.00363978,3339.4,3338.0,2.17775154]
[1768439308099,0.90827517,3339.1,3338.0,2.17775154]
[1768439308302,0.90827517,3339.0,3338.0,2.17775154]
[1768439308504,0.90827517,3338.9,3338.0,2.17775154]
[1768439308694,0.00363978,3339.4,3338.0,2.17775154]
[1768439308891,0.90870568,3339.3,3338.0,2.17775154]
[1768439309090,0.90870568,3339.2,3338.0,2.17775154]
[1768439309305,0.90870568,3339.1,3338.0,2.17775154]
[1768439309508,0.90870568,3339.0,3338.0,2.17775154]
[1768439309706,0.90870568,3338.9,3338.0,2.17775154]
[1768439309906,0.00363978,3339.4,3338.0,2.17775154]
[1768439310101,0.90883474,3339.3,3338.0,2.17775154]
[1768439310301,0.90883474,3339.2,3338.0,2.17775154]
[1768439310510,0.90883474,3339.1,3338.0,2.17775154]
[1768439310704,0.90883474,3339.0,3338.0,2.17775154]
[1768439311009,0.90883474,3338.9,3338.0,2.17775154]
[1768439311305,0.00363978,3339.4,3338.0,2.17775154]
[1768439311611,0.90915287,3339.3,3338.0,2.17775154]
[1768439311918,0.90915287,3339.2,3338.0,2.17775154]
[1768439312121,0.90915287,3339.1,3338.0,2.17775154]
[1768439312299,0.90915287,3339.0,3338.0,2.17775154]
[1768439312499,0.90915287,3338.9,3338.0,2.17775154]
[1768439312710,0.90915287,3338.8,3338.0,2.17775154]
[1768439312913,0.00363978,3339.4,3338.0,2.17775154]
[1768439313104,0.90928841,3339.3,3338.0,2.17775154]
[1768439313302,0.90928841,3339.2,3338.0,2.17775154]
[1768439313510,0.90928841,3339.1,3338.0,2.17775154]
[1768439313701,0.90928841,3339.0,3338.0,2.17775154]
[1768439313900,0.90928841,3338.9,3338.0,2.17775154]
[1768439314100,0.90928841,3338.8,3338.0,0.00304074]
[1768439314305,0.90928841,3338.7,3338.0,0.00304074]
[1768439314514,0.90928841,3338.6,3338.0,0.00304074]
[1768439314702,4.4074201,3339.4,3338.0,0.00304074]
[1768439314898,2.26630341,3339.2,3338.0,0.00304074]
[1768439315107,0.90971644,3339.1,3338.0,0.00304074]
[1768439315307,0.90971644,3339.0,3338.0,0.00304074]
[1768439315609,0.90971644,3338.9,3338.0,0.00304074]
[1768439315811,0.90971644,3338.8,3338.0,0.00304074]
[1768439316002,0.90971644,3338.7,3338.0,0.00304074]
[1768439316314,0.14976,3339.0,3338.0,0.00304074]
[1768439320518,2.41606341,3339.0,3338.0,0.00304074]
[1768439323710,2.41606341,3339.0,3337.4,3.36009112]
[1768439324220,2.26630341,3338.7,3336.8,2.34794112]
[1768439324613,0.00449014,3338.1,3336.8,2.35019414]
[1768439325614,0.00449014,3338.1,3336.8,2.20034414]
[1768439328416,0.00449014,3338.1,3336.9,0.95774205]
[1768439328819,0.00449014,3338.1,3336.9,3.15583317]
[1768439330517,0.00449014,3338.1,3337.0,2.32684164]
[1768439331118,0.14978,3338.5,3337.3,0.95774205]
[1768439331315,0.90284154,3338.4,3337.3,0.95774205]
[1768439331516,0.90284154,3338.4,3337.1,2.32684164]
[1768439331703,5.28330341,3338.8,3337.1,2.32684164]
[1768439331704,0.90284154,3338.3,3337.1,2.32684164]
[1768439331904,0.00449014,3338.0,3337.1,2.32684164]
[1768439332107,0.00449014,3338.0,3337.2,0.00449014]
[1768439333125,40.94976,3338.9,3337.2,2.33133178]
[1768439333424,0.00363978,3339.4,3338.0,0.95774205]
[1768439334121,0.00449014,3339.0,3337.7,2.32684164]
[1768439337317,0.00449014,3339.0,3337.4,0.95774205]
[1768439337528,0.00449014,3339.0,3337.3,3.48984164]
[1768439339019,0.00449014,3339.0,3337.7,3.28458369]
[1768439339221,0.00449014,3339.0,3337.8,2.32684164]
[1768439341527,0.00449014,3339.0,3338.2,0.95745412]
[1768439343814,0.00449014,3339.0,3337.8,2.32684164]
[1768439344125,0.00449014,3339.0,3338.1,0.95745412]
[1768439345216,0.00449014,3339.0,3338.4,0.95745412]
[1768439345418,0.90075828,3338.9,3338.4,0.95745412]
[1768439345618,0.00449014,3339.0,3338.1,0.95745412]
[1768439345829,0.90075892,3338.9,3338.1,0.95745412]
[1768439346023,0.90075892,3338.8,3338.1,0.95745412]
[1768439346227,0.00449014,3339.0,3338.1,0.95745412]
[1768439346435,0.90071199,3338.9,3338.1,0.95745412]
[1768439346728,0.90071005,3338.8,3338.1,0.95745412]
[1768439346929,0.00449014,3339.0,3337.8,2.32684164]
[1768439347116,0.90060428,3338.9,3337.8,3.28429576]
[1768439347323,0.90060428,3338.8,3337.8,3.28429576]
[1768439347619,0.00449014,3339.0,3337.8,3.28429576]
[1768439347823,0.90057689,3338.9,3337.8,3.28429576]
[1768439348023,0.90057689,3338.8,3337.8,3.28429576]
[1768439348225,0.00449014,3339.0,3337.8,3.28429576]
[1768439348424,0.90316594,3338.9,3337.8,3.28429576]
[1768439348623,0.90316594,3338.8,3337.8,3.28429576]
[1768439348825,0.00449014,3339.0,3337.8,3.28429576]
[1768439349132,0.90316861,3338.9,3337.8,3.28429576]
[1768439349332,0.00449014,3339.0,3337.8,3.28429576]
[1768439349522,0.90320771,3338.9,3337.8,3.28429576]
[1768439349725,0.90320771,3338.9,3337.8,0.95745412]
[1768439351036,0.90320771,3338.9,3337.4,2.47667164]
[1768439351332,0.90320771,3338.9,3337.9,0.95745412]
[1768439352436,0.90320771,3338.9,3337.4,2.32684164]
[1768439352935,0.90320771,3338.9,3337.5,0.95745412]
[1768439353141,0.90320771,3338.9,3337.8,0.95745412]
[1768439353930,0.90320771,3338.9,3337.9,0.95745412]
[1768439354531,0.90320771,3338.9,3337.6,0.95745412]
[1768439354731,0.90320771,3338.9,3337.4,2.32684164]
[1768439355329,0.90320771,3338.9,3337.6,0.95745412]
[1768439356737,0.90320771,3338.9,3337.9,0.95745412]
[1768439360044,0.90320771,3338.9,3338.2,0.95745412]
[1768439361537,0.90320771,3338.9,3337.3,1.163]
[1768439361733,0.90320771,3338.9,3337.5,0.95745412]
[1768439361933,0.95745412,3338.7,3337.3,1.163]
[1768439362236,0.90320771,3338.6,3337.3,1.163]
[1768439364442,0.90320771,3338.6,3337.4,0.95745412]
[1768439368949,0.90320771,3338.5,3337.4,0.95745412]
[1768439369248,0.90320771,3338.4,3337.7,0.95745412]
[1768439369449,0.90320771,3338.3,3337.7,0.95745412]
[1768439369651,0.14976,3338.9,3337.7,0.95745412]
[1768439369942,0.90465435,3338.8,3338.0,0.95745412]
[1768439370147,0.90465435,3338.7,3338.0,0.95745412]
[1768439370348,0.90465435,3338.6,3338.0,0.95745412]
[1768439370549,0.90465435,3338.5,3338.0,0.95745412]
[1768439370746,0.90465435,3338.4,3338.0,0.95745412]
[1768439370948,0.14976,3338.9,3338.0,0.95745412]
[1768439371151,0.90465064,3338.8,3338.0,0.95745412]
[1768439371455,0.90465064,3338.7,3337.7,0.95745412]
[1768439371756,0.90465064,3338.6,3337.7,0.95745412]
[1768439371946,0.90465064,3338.5,3337.7,0.95745412]
[1768439372155,0.90465064,3338.4,3337.7,0.95745412]
[1768439372444,0.14976,3338.9,3337.7,0.95745412]
[1768439372645,0.90455231,3338.8,3337.7,0.95745412]
[1768439372955,0.14976,3338.9,3337.7,0.95745412]
[1768439372956,0.90455231,3338.7,3337.7,0.95745412]
[1768439373252,0.90455231,3338.6,3337.7,0.95745412]
[1768439373551,0.90455231,3338.5,3337.7,0.95745412]
[1768439373751,0.90455231,3338.4,3337.7,0.95745412]
[1768439373954,0.14976,3338.9,3337.7,0.95745412]
[1768439374153,0.90464486,3338.8,3337.7,0.95745412]
[1768439374450,0.90464486,3338.7,3337.7,0.95745412]
[1768439374652,0.90464486,3338.6,3337.4,0.95745412]
[1768439374853,0.90464486,3338.5,3337.2,0.00449014]
[1768439375548,0.90464486,3338.5,3337.4,0.95745412]
[1768439375756,0.90464486,3338.4,3337.4,0.95745412]
[1768439376053,0.90464486,3338.3,3337.4,0.95745412]
[1768439376243,0.90464486,3338.2,3337.4,0.95745412]
[1768439376443,2.47803268,3338.8,3337.4,0.95745412]
[1768439376639,0.90443378,3338.7,3337.4,0.95745412]
[1768439376845,0.90443378,3338.6,3337.4,0.95745412]
[1768439377055,0.90443378,3338.5,3337.4,0.95745412]
[1768439377255,0.90443378,3338.4,3337.4,0.95745412]
[1768439377556,0.90443378,3338.3,3337.4,0.95745412]
[1768439377856,0.90443378,3338.2,3337.4,0.95745412]
[1768439378056,2.47803268,3338.8,3337.4,0.95745412]
[1768439378358,0.90606666,3338.7,3337.4,0.95745412]
[1768439378653,0.90606666,3338.6,3337.4,0.95745412]
[1768439378844,0.90606666,3338.5,3337.4,0.95745412]
[1768439379045,0.90606666,3338.4,3337.4,0.95745412]
[1768439379255,0.90606666,3338.3,3337.4,0.95745412]
[1768439379461,0.90606666,3338.2,3337.2,2.40206562]
[1768439379756,3.2857168,3338.5,3337.2,0.00449014]
[1768439379952,0.90597417,3338.4,3337.2,0.00449014]
[1768439380251,0.90597417,3338.3,3337.2,0.00449014]
[1768439380445,0.90597417,3338.2,3337.2,0.00449014]
[1768439380756,2.32826268,3338.5,3337.4,0.95745412]
[1768439380946,0.90590603,3338.4,3337.4,0.95745412]
[1768439381146,0.90590603,3338.3,3337.4,0.95745412]
[1768439381347,0.90590603,3338.2,3337.4,0.95745412]
[1768439381655,2.32826268,3338.5,3337.4,0.95745412]
[1768439381865,0.90586682,3338.4,3337.4,0.95745412]
[1768439382153,2.32826268,3338.5,3337.4,0.95745412]
[1768439382154,0.90586682,3338.3,3337.4,0.95745412]
[1768439382354,0.90586682,3338.2,3337.4,0.95745412]
[1768439382556,2.32826268,3338.5,3337.4,0.95745412]
[1768439382748,0.90583213,3338.4,3337.4,0.95745412]
[1768439382950,0.90583213,3338.3,3337.4,0.95745412]
[1768439383155,0.90583213,3338.2,3337.4,0.95745412]
[1768439383452,2.32826268,3338.5,3337.4,0.95745412]
[1768439383654,0.9057959,3338.4,3337.4,0.95745412]
[1768439383952,0.9057959,3338.3,3337.4,0.95745412]
[1768439384153,0.9057959,3338.2,3337.4,0.95745412]
[1768439384355,2.32826268,3338.5,3337.4,0.95745412]
[1768439384555,0.90577868,3338.4,3337.4,0.95745412]
[1768439384756,0.90577868,3338.3,3337.4,0.95745412]
[1768439384960,0.90577868,3338.2,3337.4,0.95745412]
[1768439385161,2.32826268,3338.5,3337.4,0.95745412]
[1768439385461,0.90576056,3338.4,3337.4,0.95745412]
[1768439385648,0.90576056,3338.3,3337.4,0.95745412]
[1768439385849,0.90576056,3338.2,3337.4,0.95745412]
[1768439386047,2.32826268,3338.5,3337.4,0.95745412]
[1768439386251,0.9057629,3338.4,3337.4,0.95745412]
[1768439386546,0.9057629,3338.3,3337.4,0.95745412]
[1768439386747,0.9057629,3338.2,3337.4,0.95745412]
[1768439386948,2.32826268,3338.5,3337.4,0.95745412]
[1768439387148,0.90557539,3338.4,3337.4,0.95745412]
[1768439387360,0.90557539,3338.3,3337.4,0.95745412]
[1768439387559,0.90557539,3338.2,3337.4,0.95745412]
[1768439387763,0.14977,3338.6,3337.4,0.95745412]
[1768439387958,0.90563433,3338.5,3337.4,0.95745412]
[1768439388164,0.90563433,3338.4,3337.4,0.95745412]
[1768439388462,0.90563433,3338.3,3337.4,0.95745412]
[1768439388663,0.90563433,3338.2,3337.4,0.95745412]
[1768439388963,0.14977,3338.6,3337.4,0.95745412]
[1768439389161,0.9056622,3338.5,3337.4,0.95745412]
[1768439389363,0.9056622,3338.4,3337.4,0.95745412]
[1768439389566,0.9056622,3338.3,3337.4,0.95745412]
[1768439389757,0.9056622,3338.2,3337.4,0.95745412]
[1768439389962,0.14977,3338.6,3337.4,0.95745412]
[1768439390258,0.90571669,3338.5,3337.4,0.95745412]
[1768439390462,0.90571669,3338.4,3337.4,0.95745412]
[1768439390668,0.90571669,3338.3,3337.4,0.95745412]
[1768439390869,0.90571669,3338.2,3337.4,0.95745412]
[1768439391170,0.90571669,3338.1,3337.4,0.95745412]
[1768439391471,0.14977,3338.6,3337.4,0.95745412]
[1768439391671,0.90610156,3338.5,3337.4,0.95745412]
[1768439391871,0.90610156,3338.4,3337.4,0.95745412]
[1768439392173,0.90610156,3338.3,3337.4,0.95745412]
[1768439392363,0.90610156,3338.2,3337.4,0.95745412]
[1768439392565,0.90610156,3338.1,3337.4,0.95745412]
[1768439392763,0.14977,3338.6,3337.4,0.95745412]
[1768439392965,0.9062419,3338.5,3337.4,0.95745412]
[1768439393163,0.9062419,3338.4,3337.4,0.95745412]
[1768439393366,0.9062419,3338.3,3337.4,0.95745412]
[1768439393661,0.9062419,3338.2,3337.4,0.95745412]
[1768439393861,0.9062419,3338.1,3337.4,0.95745412]
[1768439394068,0.14977,3338.6,3337.2,0.00449014]
[1768439394267,0.9062858,3338.5,3337.4,0.95745412]
[1768439394468,0.9062858,3338.4,3337.4,0.95745412]
[1768439394677,0.9062858,3338.3,3337.4,0.95745412]
[1768439394872,0.9062858,3338.2,3337.4,0.95745412]
[1768439395170,0.9062858,3338.1,3337.4,0.95745412]
[1768439395370,0.14977,3338.6,3337.4,0.95745412]
[1768439395570,0.90630688,3338.5,3337.4,0.95745412]
[1768439395769,0.90630688,3338.4,3337.2,0.00449014]
[1768439395964,0.90630688,3338.3,3337.2,0.00449014]
[1768439396156,0.90630688,3338.2,3337.2,0.00449014]
[1768439396361,0.90630688,3338.1,3337.2,0.00449014]
[1768439396661,0.90630688,3338.0,3337.2,0.00449014]
[1768439396858,2.35960748,3338.5,3337.2,0.00449014]
[1768439397062,0.90716994,3338.4,3337.2,0.00449014]
[1768439397262,0.90716994,3338.3,3337.2,0.00449014]
[1768439397477,2.35960748,3338.5,3337.2,0.00449014]
[1768439397478,0.90716994,3338.2,3337.2,0.00449014]
[1768439397774,0.90716994,3338.1,3337.2,0.00449014]
[1768439397963,0.90716994,3338.0,3337.2,0.00449014]
[1768439398276,2.35960748,3338.5,3337.2,0.00449014]
[1768439398574,0.90708283,3338.4,3337.2,0.00449014]
[1768439398872,0.90708283,3338.3,3337.2,0.00449014]
[1768439399170,3.26669031,3338.2,3337.2,0.00449014]
[1768439399371,0.90708283,3338.1,3337.2,0.00449014]
[1768439399571,0.90708283,3338.0,3337.2,0.00449014]
[1768439399770,0.90708283,3337.9,3337.2,0.00449014]
[1768439399968,0.90708283,3337.8,3337.2,0.00449014]
[1768439400173,3.3170616,3338.2,3337.2,0.00449014]
[1768439400369,0.90696607,3338.1,3337.2,0.00449014]
[1768439400674,0.95745412,3337.7,3336.8,0.00225302]
[1768439400875,0.90696607,3337.6,3336.8,0.95970714]
[1768439401075,2.35960748,3338.0,3336.8,0.95970714]
[1768439401076,0.90696607,3337.5,3336.8,0.95970714]
[1768439401275,2.35960748,3338.0,3336.8,0.00225302]
[1768439401574,0.90656037,3337.9,3337.1,0.00449014]
[1768439401763,0.90656037,3337.8,3337.1,0.00449014]
[1768439401965,0.90656037,3337.7,3337.1,0.00449014]
[1768439402164,0.90656037,3337.6,3337.1,0.00449014]
[1768439402374,0.1498,3338.1,3337.1,0.00449014]
[1768439402679,0.90630368,3338.0,3337.1,0.00449014]
[1768439402881,0.90630368,3337.9,3337.1,0.00449014]
[1768439403080,0.90630368,3337.8,3337.1,0.00449014]
[1768439403375,0.90630368,3337.7,3337.1,0.00449014]
[1768439403585,0.90630368,3337.6,3337.1,0.00449014]
[1768439403788,0.1498,3338.1,3337.1,0.00449014]
[1768439403982,0.90613781,3338.0,3337.1,0.00449014]
[1768439404177,3.26574529,3337.9,3337.1,0.00449014]
[1768439404484,0.90613781,3337.8,3337.1,0.00449014]
[1768439404984,0.90613781,3337.8,3336.8,0.00225302]
[1768439405876,3.26574529,3337.8,3336.8,0.00225302]
[1768439406068,0.90613781,3337.7,3336.8,0.00225302]
[1768439410293,0.1498,3338.0,3336.8,0.00225302]
[1768439410486,0.90554847,3337.9,3336.8,3.3425906]
[1768439410687,2.35960748,3338.6,3337.2,0.95823157]
[1768439410883,2.35960748,3338.6,3337.1,2.38210601]
[1768439411188,0.95823157,3337.5,3335.6,3.77745631]
[1768439411490,0.00449014,3336.9,3335.5,2.53201601]
[1768439412086,0.00780258,3336.9,3335.5,2.53522999]
[1768439426904,2.47157564,3336.9,3335.5,2.38531999]
[1768439427414,0.00780258,3336.9,3335.5,2.38531999]
[1768439427617,0.00780258,3336.9,3335.5,3.34355156]
[1768439427817,0.00780258,3336.9,3335.6,2.42418274]
[1768439428412,0.00780258,3336.9,3335.6,3.38241431]
[1768439428610,0.00780258,3336.9,3335.7,2.42418274]
[1768439438511,0.00780258,3336.9,3336.0,2.42418274]
[1768439438916,2.61358306,3337.7,3336.0,2.42418274]
[1768439439217,0.89915895,3337.6,3336.0,2.42418274]
[1768439439412,0.89915895,3337.5,3336.1,2.42418274]
[1768439439619,0.89915895,3337.4,3336.1,2.42418274]
[1768439439917,0.89915895,3337.3,3336.1,2.42418274]
[1768439440121,0.00449014,3337.1,3336.1,2.42418274]
[1768439440321,0.90015672,3337.0,3336.1,2.42418274]
[1768439440522,0.00449014,3337.1,3336.1,2.42418274]
[1768439441511,0.00330256,3337.4,3336.3,3.38690445]
[1768439441716,0.90009026,3337.3,3336.4,2.42418274]
[1768439441916,2.46377306,3338.1,3336.4,2.42418274]
[1768439442211,0.90013959,3338.0,3336.4,2.42418274]
[1768439442411,0.90013959,3337.9,3336.4,2.42418274]
[1768439442612,2.46377306,3338.1,3336.4,2.42418274]
[1768439442613,0.00449014,3337.5,3336.4,2.42418274]
[1768439443019,0.00806253,3337.5,3336.4,2.42418274]
[1768439443229,0.89976182,3337.4,3336.4,2.42418274]
[1768439443430,0.00806253,3337.5,3336.4,2.42418274]
[1768439443626,0.89949462,3337.4,3336.4,2.42418274]
[1768439443929,0.00806253,3337.5,3336.4,2.42418274]
[1768439444222,0.89949084,3337.4,3336.4,2.42418274]
[1768439444418,0.00806253,3337.5,3336.4,2.42418274]
[1768439444629,0.89927972,3337.4,3336.4,2.42418274]
[1768439444929,0.00806253,3337.5,3336.4,2.42418274]
[1768439445130,0.89927972,3337.4,3336.4,2.42418274]
[1768439445330,0.00806253,3337.5,3336.4,2.42418274]
[1768439450430,0.00806253,3337.5,3336.3,0.00449014]
[1768439450734,0.89937967,3337.4,3336.3,0.00449014]
[1768439451034,2.50365965,3337.5,3336.3,0.00449014]
[1768439451231,0.89938288,3337.4,3336.3,0.00449014]
[1768439451529,2.50365965,3337.5,3336.3,0.00449014]
[1768439451735,0.89946382,3337.4,3336.3,0.00449014]
[1768439451930,2.50365965,3337.5,3336.3,0.00449014]
[1768439452129,0.89946538,3337.4,3336.3,0.00449014]
[1768439452330,2.50365965,3337.5,3336.3,0.00449014]
[1768439452530,0.89946447,3337.4,3336.3,0.00449014]
[1768439452733,2.50365965,3337.5,3336.3,0.00449014]
[1768439453029,2.50365965,3337.5,3336.3,2.54707548]
[1768439453030,0.89946358,3337.4,3336.3,2.54707548]
[1768439453230,0.00806253,3337.5,3336.3,2.54707548]
[1768439455636,0.00806253,3337.5,3336.6,0.95823157]
[1768439455935,0.00806253,3337.5,3336.3,2.54707548]
[1768439461839,0.00806253,3337.5,3336.3,0.00449014]
[1768439462035,2.50365965,3337.5,3336.3,0.00449014]
[1768439462338,0.90009294,3337.4,3336.3,0.00449014]
[1768439462637,2.50365965,3337.5,3336.3,0.00449014]
[1768439462837,0.90016099,3337.4,3336.3,0.00449014]
[1768439463038,2.50365965,3337.5,3336.3,0.00449014]
[1768439463237,0.90015728,3337.4,3336.3,0.00449014]
[1768439463539,2.50365965,3337.5,3336.3,0.96298175]
[1768439463736,0.9001559,3337.4,3336.3,0.96298175]
[1768439464039,2.50365965,3337.5,3336.3,0.96298175]
[1768439464338,0.9001044,3337.4,3336.3,0.96298175]
[1768439464540,2.50365965,3337.5,3336.3,0.96298175]
[1768439464726,0.90021817,3337.4,3336.3,0.00449014]
[1768439464934,0.00806253,3337.5,3336.9,0.95849161]
[1768439466637,0.00806253,3337.5,3336.3,2.54707548]
[1768439466937,0.00806253,3337.5,3336.7,0.95849161]
[1768439467242,0.90053051,3337.4,3336.7,0.95849161]
[1768439467439,0.00806253,3337.5,3336.7,0.95849161]
[1768439467635,0.90069385,3337.4,3336.7,0.95849161]
[1768439467836,0.00806253,3337.5,3336.7,0.95849161]
[1768439468036,0.89998,3337.4,3336.7,0.95849161]
[1768439468242,0.00806253,3337.5,3336.7,0.95849161]
[1768439468537,0.90021647,3337.4,3336.7,0.95849161]
[1768439468750,0.00806253,3337.5,3337.0,0.95849161]
[1768439468945,2.49559712,3338.0,3337.3,0.95849161]
[1768439469133,0.90027295,3337.9,3337.3,0.95849161]
[1768439469336,0.90027295,3337.8,3337.3,0.95849161]
[1768439469632,4.63307403,3338.4,3337.3,0.95849161]
[1768439469941,2.49916115,3338.4,3337.3,0.95849161]
[1768439470145,0.00449014,3338.2,3337.3,0.95849161]
[1768439471346,0.00356403,3338.4,3337.9,0.95849161]
[1768439471642,0.00356403,3338.4,3337.9,0.96202409]
[1768439472144,2.49559712,3339.0,3338.1,0.95849161]
[1768439472845,2.49559712,3339.0,3337.9,0.96202409]
[1768439473246,2.49784389,3339.0,3338.1,0.00449014]
[1768439474548,2.49784389,3339.0,3338.1,0.96298175]
[1768439474943,2.49784389,3339.0,3338.1,0.00449014]
[1768439475257,0.00449014,3338.9,3338.1,0.00449014]
[1768439475547,0.96298175,3338.9,3338.1,0.00449014]
[1768439477649,3.45857887,3338.9,3338.1,0.00449014]
[1768439477851,2.50008726,3338.9,3338.1,0.00449014]
[1768439478653,3.45408873,3338.6,3337.1,3.50107695]
[1768439478852,0.95849161,3338.4,3337.0,1.10833161]
[1768439479744,0.95849161,3338.4,3337.4,0.00449014]
[1768439480455,2.49559712,3338.5,3337.4,0.00449014]
[1768439484646,2.60356082,3338.9,3337.9,0.95849161]
[1768439484844,0.89371257,3338.8,3337.9,0.95849161]
[1768439485042,0.89371257,3338.7,3337.9,0.95849161]
[1768439485258,2.60356082,3338.9,3337.9,0.95849161]
[1768439485459,0.89372843,3338.8,3337.9,0.95849161]
[1768439485658,0.89372843,3338.7,3337.9,0.95849161]
[1768439485860,0.15425014,3338.9,3337.9,0.95849161]
[1768439486057,0.89372819,3338.8,3337.9,0.95849161]
[1768439486257,0.89372819,3338.7,3337.9,0.95849161]
[1768439486458,0.15425014,3338.9,3337.9,0.95849161]
[1768439486758,0.89370912,3338.8,3337.9,0.95849161]
[1768439487062,0.89370912,3338.7,3337.8,0.95849161]
[1768439487257,0.15425014,3338.9,3337.8,0.95849161]
[1768439487461,0.89364447,3338.8,3337.8,0.95849161]
[1768439487655,0.89364447,3338.7,3337.8,0.95849161]
[1768439487961,0.15425014,3338.9,3337.8,0.95849161]
[1768439488157,0.89362451,3338.8,3337.8,0.95849161]
[1768439488467,0.89362451,3338.7,3337.8,0.95849161]
[1768439488653,0.15425014,3338.9,3337.8,0.95849161]
[1768439488854,0.89359562,3338.8,3337.8,0.95849161]
[1768439489160,0.89359562,3338.7,3337.8,0.95849161]
[1768439489458,0.15425014,3338.9,3337.8,0.95849161]
[1768439489660,0.89355936,3338.8,3337.8,0.95849161]
[1768439489860,0.89355936,3338.7,3337.8,0.95849161]
[1768439490049,0.15425014,3338.9,3337.8,0.95849161]
[1768439490253,0.89356433,3338.8,3337.8,0.95849161]
[1768439490454,0.89356433,3338.7,3337.8,0.95849161]
[1768439490655,0.15425014,3338.9,3337.8,0.95849161]
[1768439490965,0.89359131,3338.8,3337.8,0.95849161]
[1768439491161,0.89359131,3338.7,3337.8,0.95849161]
[1768439491361,0.15425014,3338.9,3337.8,0.95849161]
[1768439491562,0.89369949,3338.8,3337.8,0.95849161]
[1768439491765,0.89369949,3338.7,3337.8,0.95849161]
[1768439491958,0.15425014,3338.9,3337.8,0.95849161]
[1768439492160,0.89370321,3338.8,3337.8,0.95849161]
[1768439492360,0.89370321,3338.7,3337.8,0.95849161]
[1768439492560,0.15425014,3338.9,3337.8,0.95849161]
[1768439492762,0.89390101,3338.8,3337.8,0.95849161]
[1768439492965,0.00224677,3339.0,3338.4,0.95849161]
[1768439493267,0.14973,3339.5,3337.8,2.46499595]
[1768439493268,0.14973,3339.5,3338.6,0.95849161]
[1768439493567,0.89404359,3339.4,3338.6,0.95849161]
[1768439493765,0.89404359,3339.3,3338.6,0.95849161]
[1768439493960,0.89404359,3339.2,3338.6,0.95849161]
[1768439494161,0.89404359,3339.1,3338.6,0.95849161]
[1768439494365,0.89404359,3339.0,3338.6,0.95849161]
[1768439494562,0.00718476,3339.2,3338.6,0.95849161]
[1768439496372,0.14973,3339.5,3338.6,0.95849161]
[1768439497373,0.15237468,3339.5,3338.6,0.95849161]
[1768439497666,0.00264468,3339.5,3338.8,0.95849161]
[1768439497862,0.00563814,3339.5,3338.4,0.95849161]
[1768439498374,0.00563814,3339.5,3338.6,0.95849161]
[1768439499974,0.00563814,3339.5,3338.9,0.95849161]
[1768439500176,0.14972,3339.9,3338.9,0.95849161]
[1768439501075,0.15279004,3339.9,3338.9,0.95849161]
[1768439501574,0.15279004,3339.9,3338.4,2.46499595]
[1768439501768,0.15279004,3339.9,3338.8,0.95849161]
[1768439504370,0.95849161,3339.7,3338.4,0.95849161]
[1768439504979,0.95849161,3339.5,3338.2,2.46499595]
[1768439505880,0.95849161,3339.6,3338.2,3.42348756]
[1768439506472,0.88829645,3339.5,3338.2,3.42348756]
[1768439506673,0.95849161,3339.6,3338.2,3.42348756]
[1768439506977,0.88830047,3339.5,3338.2,3.42348756]
[1768439507175,0.95849161,3339.6,3338.2,3.42348756]
[1768439507377,0.88828966,3339.5,3338.2,3.42348756]
[1768439507580,0.95849161,3339.6,3338.2,3.42348756]
[1768439507774,0.88828979,3339.5,3338.2,3.42348756]
[1768439507970,0.88828979,3339.4,3338.2,3.42348756]
[1768439508167,0.95849161,3339.6,3338.2,3.42348756]
[1768439508371,0.88829342,3339.5,3338.2,3.42348756]
[1768439508572,0.88829342,3339.4,3338.2,3.42348756]
[1768439508784,0.95849161,3339.6,3338.2,3.42348756]
[1768439508984,0.88829339,3339.5,3338.2,3.42348756]
[1768439509282,0.88829339,3339.4,3338.2,3.42348756]
[1768439509484,0.95849161,3339.6,3338.2,3.42348756]
[1768439509677,0.95849161,3339.4,3338.2,3.42348756]
[1768439510383,0.95849161,3339.6,3338.2,3.42348756]
[1768439510579,0.88839697,3339.5,3338.2,3.42348756]
[1768439510779,0.88839697,3339.4,3338.2,3.42348756]
[1768439510991,0.95849161,3339.6,3338.2,3.42348756]
[1768439511180,0.88839611,3339.5,3338.2,3.42348756]
[1768439511379,0.88839611,3339.4,3338.2,3.42348756]
[1768439511581,0.95849161,3339.6,3338.2,3.42348756]
[1768439511883,0.88847086,3339.5,3338.2,3.42348756]
[1768439512086,0.88847086,3339.4,3338.2,3.42348756]
[1768439512283,0.95849161,3339.6,3338.2,3.42348756]
[1768439512582,0.88856489,3339.5,3338.2,3.42348756]
[1768439512786,0.88856489,3339.4,3338.2,3.42348756]
[1768439512975,0.95849161,3339.6,3338.2,3.42348756]
[1768439513171,0.88856313,3339.5,3338.2,3.42348756]
[1768439513385,0.88856313,3339.4,3338.4,0.95849161]
[1768439513587,0.95849161,3339.6,3338.4,0.95849161]
[1768439513788,0.88867197,3339.5,3338.4,0.95849161]
[1768439513988,0.88867197,3339.4,3338.4,0.95849161]
[1768439514290,2.44931068,3339.8,3338.4,3.36390448]
[1768439514490,0.88880188,3339.7,3338.4,3.36390448]